fUSD/lending_fUSD_20241101
["ID","MTS","AMOUNT","RATE_DAILY","PERIOD"]
[341134768,1730449843460,-500.0,0.00041643,3]
[341134769,1730449843469,-196.98697688,0.00041643,3]
[341134770,1730449843481,-303.01302312,0.00041643,3]
[341134771,1730449843489,-500.0,0.00041643,3]
[341134772,1730449843499,-151.0,0.00041643,7]
[341134773,1730449843508,-25.72801348,0.00041643,3]
[341134774,1730449843519,-682.85198652,0.00041643,3]
[341134775,1730449843529,-500.0,0.00041643,3]
[341134776,1730449843538,-500.0,0.00041643,3]
[341134777,1730449843548,-527.47,0.00041643,3]
[341134778,1730449843557,-500.0,0.00041643,3]
[341134779,1730449843567,-500.0,0.00041643,3]
[341134780,1730449843576,-848.48,0.00041643,3]
[341134781,1730449843585,-789.84610086,0.00041643,3]
[341134782,1730449843862,-942.48,0.00041095,3]
[341134783,1730449843871,-151.0,0.000413,14]
[341134784,1730449843880,-942.48,0.00041369,3]
[341134785,1730449843890,-151.0,0.00041369,14]
[341134786,1730449843900,-758.50389914,0.00041643,3]
[341134787,1730449843909,-500.0,0.00041643,3]
[341134788,1730449843919,-250.885454,0.00041643,14]
[341134789,1730449843929,-500.0,0.00041643,3]
[341134790,1730449843939,-151.0,0.00041643,14]
[341134791,1730449843950,-500.0,0.00041643,3]
[341134792,1730449843959,-500.0,0.00041643,3]
[341134793,1730449843969,-500.0,0.00041643,3]
[341134794,1730449843979,-500.0,0.00041643,3]
[341134795,1730449843989,-500.0,0.00041643,3]
[341134796,1730449843998,-151.0,0.00041643,14]
[341134797,1730449844008,-500.0,0.00041643,3]
[341134798,1730449844017,-500.0,0.00041643,3]
[341134799,1730449844026,-500.0,0.00041643,3]
[341134800,1730449844036,-1023.03,0.00041643,3]
[341134801,1730449844046,-500.0,0.00041643,3]
[341134802,1730449844056,-668.82,0.00041643,3]
[341134803,1730449844066,-500.0,0.00041643,3]
[341134804,1730449844076,-500.0,0.00041643,3]
[341134805,1730449844085,-880.3,0.00041643,3]
[341134806,1730449844095,-407.66031269,0.00041643,3]
[341134807,1730449844107,-92.33968731,0.00041643,3]
[341134808,1730449844117,-500.0,0.00041643,3]
[341134809,1730449844127,-500.0,0.00041643,3]
[341134810,1730449844136,-500.0,0.00041643,3]
[341134811,1730449844145,-226.04252787,0.00041643,3]
[341134812,1730449844157,-944.42747213,0.00041643,3]
[341134813,1730449844166,-446.305619,0.00041643,14]
[341134814,1730449844175,-500.0,0.00041643,3]
[341134815,1730449844184,-446.305619,0.00041643,14]
[341134816,1730449844194,-561.66,0.00041643,3]
[341134817,1730449844204,-503.32765638,0.00041643,3]
[341134818,1730449844213,-534.57,0.00041643,3]
[341134819,1730449844223,-500.0,0.00041643,3]
[341134820,1730449844232,-565.61,0.00041643,3]
[341134821,1730449844242,-500.0,0.00041643,3]
[341134822,1730449844251,-500.0,0.00041643,3]
[341134823,1730449844261,-500.0,0.00041643,3]
[341134824,1730449844270,-500.0,0.00041643,3]
[341134825,1730449844280,-500.0,0.00041643,3]
[341134826,1730449844290,-154.539386,0.00041643,14]
[341134827,1730449844300,-500.0,0.00041643,3]
[341134828,1730449844309,-500.0,0.00041643,3]
[341134829,1730449844319,-1056.42,0.00041643,3]
[341134830,1730449844328,-500.0,0.00041643,3]
[341134831,1730449844337,-615.49,0.00041643,3]
[341134832,1730449844347,-631.27,0.00041643,3]
[341134833,1730449844357,-500.0,0.00041643,3]
[341134834,1730449844366,-1076.65,0.00041643,3]
[341134835,1730449844376,-500.0,0.00041643,3]
[341134836,1730449844386,-500.0,0.00041643,3]
[341134837,1730449844395,-514.7,0.00041643,3]
[341134838,1730449844405,-151.0,0.00041643,14]
[341134839,1730449844415,-906.23,0.00041643,3]
[341134840,1730449844425,-591.65,0.00041643,3]
[341134841,1730449844434,-531.37,0.00041643,3]
[341134842,1730449844443,-151.0,0.00041643,14]
[341134843,1730449844453,-500.0,0.00041643,3]
[341134844,1730449844463,-2752.6,0.00041643,3]
[341134845,1730449844472,-500.0,0.00041643,3]
[341134846,1730449844482,-3497.66,0.00041643,3]
[341134847,1730449844491,-500.0,0.00041643,3]
[341134848,1730449844501,-669.68,0.00041643,3]
[341134849,1730449844510,-653.8,0.00041643,3]
[341134850,1730449844520,-500.0,0.00041643,3]
[341134851,1730449844529,-2050.45,0.00041643,3]
[341134852,1730449844539,-151.0,0.00041643,14]
[341134853,1730449844550,-569.2,0.00041643,3]
[341134854,1730449844559,-879.16,0.00041643,3]
[341134855,1730449844568,-609.3,0.00041643,3]
[341134856,1730449844577,-1966.1,0.00041643,3]
[341134857,1730449844587,-500.0,0.00041643,3]
[341134858,1730449844596,-814.41,0.00041643,3]
[341134859,1730449844605,-1191.68,0.00041643,3]
[341134860,1730449844615,-603.87,0.00041643,3]
[341134861,1730449844624,-500.0,0.00041643,3]
[341134862,1730449844636,-365.12025489,0.00041643,3]
[341134863,1730449844646,-500.0,0.00041643,3]
[341134864,1730449844656,-526.41,0.00041643,3]
[341134865,1730449844666,-500.0,0.00041643,3]
[341134866,1730449844675,-500.0,0.00041643,3]
[341134867,1730449844686,-500.0,0.00041643,3]
[341134868,1730449844696,-671.21,0.00041643,3]
[341134869,1730449844705,-500.0,0.00041643,3]
[341134870,1730449844714,-500.0,0.00041643,3]
[341134871,1730449844723,-500.0,0.00041643,3]
[341134872,1730449844736,-500.0,0.00041643,3]
[341134873,1730449844746,-239.66602431,0.00041643,3]
[341134874,1730449844756,-300.0,0.00041643,3]
[341134875,1730449844766,-587.42666295,0.00041643,3]
[341134876,1730449844775,-267.06931922,0.00041643,3]
[341134877,1730449844785,-679.55,0.00041643,3]
[341134878,1730449844795,-500.0,0.00041643,3]
[341134879,1730449844804,-911.21,0.00041643,3]
[341134880,1730449844815,-1317.48,0.00041643,3]
[341134881,1730449844825,-545.55,0.00041643,3]
[341134882,1730449844835,-642.89,0.00041643,3]
[341134883,1730449844844,-555.63,0.00041643,3]
[341134884,1730449844854,-1450.27,0.00041643,3]
[341134885,1730449844863,-500.0,0.00041643,3]
[341134886,1730449844872,-500.0,0.00041643,3]
[341134887,1730449844881,-500.0,0.00041643,3]
[341134888,1730449844891,-1047.71,0.00041643,3]
[341134889,1730449844900,-835.24,0.00041643,3]
[341134890,1730449844911,-608.78,0.00041643,3]
[341134891,1730449844921,-500.0,0.00041643,3]
[341134892,1730449844931,-1798.14,0.00041643,3]
[341134893,1730449844940,-1303.68,0.00041643,3]
[341134894,1730449844950,-613.93,0.00041643,3]
[341134895,1730449844960,-500.0,0.00041643,3]
[341134896,1730449844970,-678.71,0.00041643,3]
[341134897,1730449844979,-1390.74,0.00041643,3]
[341134898,1730449844989,-605.62,0.00041643,3]
[341134899,1730449844999,-500.0,0.00041643,3]
[341134900,1730449845008,-500.0,0.00041643,3]
[341134901,1730449845018,-500.0,0.00041643,3]
[341134902,1730449845107,-500.0,0.00041643,3]
[341134903,1730449845117,-500.0,0.00041643,3]
[341134904,1730449845127,-868.73,0.00041643,3]
[341134905,1730449845137,-500.0,0.00041643,3]
[341134906,1730449845148,-942.48,0.00041643,3]
[341134907,1730449845160,-151.0,0.00041643,14]
[341134908,1730449845171,-543.49444852,0.00041673,5]
[341134909,1730449845181,-501.30810324,0.00041673,10]
[341134910,1730449845192,-150.0,0.00041699,2]
[341134911,1730449845202,-1986.86,0.00041706,2]
[341134912,1730449845213,-156.96,0.00041757,2]
[341134913,1730449845223,-1333.26,0.00041781,2]
[341134914,1730449845234,-300.0,0.000418,15]
[341134915,1730449845244,-638.31787495,0.00041817,120]
[341134916,1730449845254,-200.0,0.0004182,7]
[341134917,1730449845264,-4289.28036595,0.00041822,120]
[341134918,1730449845274,-2524.67,0.00041828,2]
[341134919,1730449845283,-2225.79,0.00041879,2]
[341134920,1730449845293,-150.0,0.00041894,2]
[341134921,1730449845306,-800.0,0.00041898,2]
[341134922,1730449845316,-1068.0,0.000419,7]
[341134923,1730449845326,-600.0,0.000419,15]
[341134924,1730449845336,-500.0,0.00041917,3]
[341134925,1730449845345,-500.0,0.00041917,3]
[341134926,1730449845354,-500.0,0.00041917,2]
[341134927,1730449845364,-500.0,0.00041917,3]
[341134928,1730449845375,-500.0,0.00041917,3]
[341134929,1730449845385,-176.45746106,0.00041917,3]
[341134930,1730449845395,-500.0,0.00041917,3]
[341134931,1730449845406,-500.0,0.00041917,3]
[341134932,1730449845416,-500.0,0.00041917,3]
[341134933,1730449845426,-500.0,0.00041917,3]
[341134934,1730449845436,-500.0,0.00041917,3]
[341134935,1730449845445,-500.0,0.00041917,3]
[341134936,1730449845455,-500.0,0.00041917,3]
[341134937,1730449845466,-500.0,0.00041917,3]
[341134938,1730449845476,-200.0,0.00041917,3]
[341134939,1730449845485,-500.0,0.00041917,3]
[341134940,1730449845495,-500.0,0.00041917,3]
[341134941,1730449845505,-500.0,0.00041917,3]
[341134942,1730449845515,-500.0,0.00041917,3]
[341134943,1730449845524,-161.516723,0.00041917,14]
[341134944,1730449845534,-500.0,0.00041917,3]
[341134945,1730449845544,-500.0,0.00041917,3]
[341134946,1730449845555,-500.0,0.00041917,3]
[341134947,1730449845564,-184.785565,0.00041917,14]
[341134948,1730449845574,-181.50585952,0.00041917,3]
[341134952,1730449846067,-318.49414048,0.00041917,3]
[341134953,1730449846078,-195.92263993,0.00041917,3]
[341134954,1730449846123,-250.7,0.00041917,3]
[341134955,1730449846229,-326.08930172,0.00041917,3]
[341134956,1730449904372,153.0,0.00035616,2]
[341134957,1730449904717,153.0,0.00035616,2]
[341134958,1730449904801,153.0,0.00035616,2]
[341134959,1730449905021,153.0,0.00035616,2]
[341134960,1730449905231,153.0,0.00035616,2]
[341134961,1730449905561,153.0,0.00035616,2]
[341134962,1730449905775,153.0,0.00035616,2]
[341134963,1730449906359,165.2145,0.00035972,2]
[341134964,1730449910691,153.0,0.00035616,2]
[341134965,1730449912275,152.98400022,0.00035972,2]
[341134966,1730449912295,35.36649978,0.00035972,2]
[341134967,1730449930278,190.7935,0.00035972,2]
[341134969,1730450305398,158.94,0.00015342,2]
[341134971,1730450452006,250.0,0.00017,2]
[341134972,1730450453078,300.0,0.00019,2]
[341134974,1730450726353,6056.90916378,0.0004482,20]
[341134975,1730450808126,-150.0,0.00034548,10]
[341134976,1730450808147,-170.07804724,0.000346,2]
[341134977,1730450808168,-573.27251154,0.000347,2]
[341134978,1730450840092,-151.73537304,0.00034006,2]
[341134979,1730450844107,-121.51162696,0.00034006,2]
[341134980,1730450844126,-474.72748846,0.000347,2]
[341134981,1730450844146,-359.36984201,0.00035516,2]
[341134982,1730450844165,-300.0,0.00035615,2]
[341134983,1730450844185,-153.0,0.00035616,2]
[341134984,1730450844205,-153.0,0.00035616,2]
[341134985,1730450844224,-153.0,0.00035616,2]
[341134986,1730450844244,-153.0,0.00035616,2]
[341134987,1730450844264,-153.0,0.00035616,2]
[341134988,1730450844284,-153.0,0.00035616,2]
[341134989,1730450844303,-153.0,0.00035616,2]
[341134990,1730450844323,-153.0,0.00035616,2]
[341134991,1730450844348,-153.0,0.00035616,2]
[341134992,1730450844367,-153.0,0.00035616,2]
[341134993,1730450844387,-153.0,0.00035616,2]
[341134994,1730450844407,-153.0,0.00035616,2]
[341134995,1730450844428,-153.0,0.00035616,2]
[341134996,1730450844448,-153.0,0.00035616,2]
[341134997,1730450844468,-153.0,0.00035616,2]
[341134998,1730450844489,-153.0,0.00035616,2]
[341134999,1730450844509,-153.0,0.00035616,2]
[341135000,1730450844529,-153.0,0.00035616,2]
[341135001,1730450844549,-153.0,0.00035616,2]
[341135002,1730450844568,-153.0,0.00035616,2]
[341135003,1730450844590,-153.0,0.00035616,2]
[341135004,1730450844609,-153.0,0.00035616,2]
[341135005,1730450844631,-153.0,0.00035616,2]
[341135006,1730450844651,-153.0,0.00035616,2]
[341135007,1730450844671,-153.0,0.00035616,2]
[341135008,1730450844690,-222.09,0.00035972,2]
[341135009,1730450844709,-329.5715,0.00035972,2]
[341135010,1730450844730,-214.331,0.00035972,2]
[341135011,1730450844751,-192.38,0.00036473,2]
[341135012,1730450844774,-789.52381117,0.00036861,2]
[341135013,1730450850108,-119.40513983,0.00036861,2]
[341135014,1730450850129,-150.99,0.00036861,2]
[341135015,1730450850149,-199.70943712,0.00037046,2]
[341135016,1730450854121,-689.72056288,0.00037046,2]
[341135017,1730450854142,-150.22,0.00037385,2]
[341135018,1730450854163,-500.0,0.000379,2]
[341135019,1730450854188,-200.0,0.00038086,2]
[341135020,1730450854210,-250.0,0.00038313,120]
[341135021,1730450854231,-150.0,0.00038367,2]
[341135022,1730450854252,-1000.0,0.00038391,2]
[341135023,1730450854272,-250.0,0.00038393,2]
[341135024,1730450854293,-7852.10395763,0.00038448,2]
[341135025,1730450864451,196.5,0.0004482,120]
[341135027,1730450930613,157.17,0.00015342,2]
[341135028,1730450946096,-157.17,0.00035616,2]
[341135029,1730450961090,-176.06875,0.00035972,2]
[341135030,1730450961233,-185.0755,0.00035972,2]
[341135036,1730451019833,196.85,0.00036965,2]
[341135037,1730451021211,208.46325,0.00035972,2]
[341135062,1730451032201,-844.95,0.00037532,2]
[341135064,1730451032211,-36.13675534,0.00038448,2]
[341135065,1730451032485,-445.82500683,0.00038448,2]
[341135066,1730451032533,-345.80403217,0.00038448,2]
[341135067,1730451032548,-2727.3619961,0.00038448,2]
[341135068,1730451032559,-6450.19608942,0.00038448,2]
[341135154,1730451038150,-2006.55654929,0.00038448,2]
[341135157,1730451038706,-4036.01561322,0.00038448,2]
[341135158,1730451038715,-416.89719877,0.00038488,2]
[341135159,1730451038726,-250.0,0.00038842,2]
[341135160,1730451038735,-12147.81823029,0.00038842,30]
[341135161,1730451038748,-1016.11823437,0.00038842,30]
[341135162,1730451038760,-1809.87081031,0.00038842,30]
[341135163,1730451038775,-22005.47791198,0.00038842,30]
[341135164,1730451039531,-601.55280672,0.00038842,30]
[341135165,1730451039578,-853.49325761,0.00038842,30]
[341135166,1730451039749,-1226.89383561,0.00038842,30]
[341135167,1730451039764,-668.26362144,0.00038842,30]
[341135168,1730451039777,-25445.28129167,0.00038842,30]
[341135169,1730451039786,-167.72,0.00038857,2]
[341135170,1730451039796,-500.0,0.00038999,15]
[341135171,1730451039806,-500.0,0.00038999,15]
[341135172,1730451039815,-500.0,0.00038999,15]
[341135173,1730451039824,-500.0,0.00038999,15]
[341135174,1730451039834,-500.0,0.00038999,15]
[341135175,1730451039843,-376.86284808,0.00038999,15]
[341135176,1730451039853,-424.98349481,0.00038999,15]
[341135177,1730451039862,-500.0,0.00038999,15]
[341135178,1730451039871,-500.0,0.00038999,15]
[341135179,1730451039880,-500.0,0.00038999,15]
[341135180,1730451039890,-500.0,0.00038999,15]
[341135181,1730451039899,-500.0,0.00038999,15]
[341135182,1730451039908,-500.0,0.00038999,15]
[341135184,1730451040011,-500.0,0.00038999,15]
[341135185,1730451040021,-500.0,0.00038999,15]
[341135186,1730451040031,-500.0,0.00038999,15]
[341135187,1730451040041,-500.0,0.00038999,15]
[341135188,1730451040051,-500.0,0.00038999,15]
[341135189,1730451040062,-500.0,0.00038999,15]
[341135190,1730451040072,-500.0,0.00038999,15]
[341135191,1730451040081,-500.0,0.00038999,15]
[341135192,1730451040090,-419.4333382,0.00038999,15]
[341135193,1730451040100,-160.0,0.00039,7]
[341135194,1730451040109,-176.14,0.00039058,2]
[341135195,1730451040119,-150.484,0.00039072,53]
[341135196,1730451040129,-851.68,0.00039341,2]
[341135197,1730451040138,-210.81,0.0003935,2]
[341135198,1730451040147,-159.41,0.00039545,120]
[341135199,1730451040157,-844.95,0.00039796,2]
[341135200,1730451040167,-2633.14516319,0.00039809,2]
[341135201,1730451040177,-2633.14516319,0.00039881,2]
[341135202,1730451040186,-480.4305,0.000399,2]
[341135203,1730451040196,-2633.14516319,0.0003993,2]
[341135204,1730451040207,-2633.14516319,0.00039979,2]
[341135205,1730451040217,-2633.14516319,0.00039986,2]
[341135206,1730451040232,-3333.0,0.00040002,2]
[341135207,1730451040241,-167.0,0.0004004,2]
[341135208,1730451040251,-431.71,0.00040274,2]
[341135209,1730451040261,-431.71,0.00040274,2]
[341135210,1730451040270,-431.71,0.00040274,2]
[341135211,1730451040279,-431.71,0.00040274,2]
[341135212,1730451040289,-431.71,0.00040274,2]
[341135213,1730451040298,-863.42,0.00040274,2]
[341135214,1730451040308,-1000.0,0.0004029,2]
[341135215,1730451040317,-1622.1703518,0.00040306,15]
[341135216,1730451040326,-368.82,0.0004038,3]
[341135217,1730451040335,-751.64,0.0004038,10]
[341135218,1730451040344,-179.0,0.0004039,2]
[341135219,1730451040353,-62516.53527747,0.0004039,2]
[341135220,1730451040369,-10787.48222375,0.0004039,2]
[341135221,1730451040380,-3914.18456709,0.0004039,2]
[341135222,1730451040513,-1655.10167824,0.0004039,2]
[341135223,1730451040543,-701.4139888,0.0004039,2]
[341135224,1730451040554,-2537.07786476,0.0004039,2]
[341135225,1730451040572,-335.0,0.0004039,2]
[341135230,1730451043233,-2611.10939048,0.00038857,2]
[341135231,1730451043244,-2653.97220526,0.00038857,2]
[341135232,1730451043289,-3678.58122185,0.00038857,2]
[341135233,1730451043302,-346.12673191,0.00038857,2]
[341135234,1730451043314,-1776.27423344,0.00038857,2]
[341135235,1730451043325,-425.754786,0.00038857,2]
[341135236,1730451043344,-1831.9534897,0.00038857,2]
[341135237,1730451043390,-99.26117314,0.00038857,2]
[341135238,1730451043464,-91.20448965,0.00038857,2]
[341135239,1730451043480,-524.18902528,0.00038857,2]
[341135240,1730451043491,-78.50066546,0.00038857,2]
[341135241,1730451043501,-181.13558774,0.0004039,2]
[341135250,1730451046182,-431.885,0.0004039,2]
[341135251,1730451046237,-584.68560819,0.0004039,2]
[341135252,1730451046248,-3414.84799108,0.0004039,2]
[341135253,1730451046346,-37823.49781288,0.0004039,2]
[341135254,1730451046356,-167.02,0.00040534,2]
[341135255,1730451046365,-411.48063059,0.00040665,2]
[341135256,1730451046376,-295.88118891,0.00040995,28]
[341135257,1730451046386,-411.48063059,0.00041006,2]
[341135258,1730451046397,-497.59706443,0.00041095,3]
[341135259,1730451046408,-500.0,0.00041095,3]
[341135260,1730451046420,-500.0,0.00041095,2]
[341135261,1730451046430,-500.0,0.00041095,3]
[341135262,1730451046440,-500.0,0.00041095,3]
[341135263,1730451046452,-500.0,0.00041095,3]
[341135264,1730451046463,-504.49851383,0.00041095,3]
[341135265,1730451046473,-500.0,0.00041095,3]
[341135266,1730451046482,-794.06,0.00041095,3]
[341135267,1730451046491,-500.0,0.00041095,3]
[341135268,1730451046500,-500.0,0.00041095,3]
[341135269,1730451046509,-163.80749958,0.00041095,3]
[341135270,1730451046518,-500.0,0.00041095,3]
[341135271,1730451046527,-500.0,0.00041095,3]
[341135272,1730451046537,-500.0,0.00041095,3]
[341135273,1730451046546,-500.0,0.00041095,3]
[341135274,1730451046555,-500.0,0.00041095,3]
[341135275,1730451046564,-500.0,0.00041095,3]
[341135276,1730451046573,-500.0,0.00041095,3]
[341135277,1730451046582,-500.0,0.00041095,3]
[341135278,1730451046591,-500.0,0.00041095,3]
[341135279,1730451046600,-543.33,0.00041095,3]
[341135280,1730451046609,-500.0,0.00041095,3]
[341135282,1730451046619,-234.26,0.00041095,3]
[341135284,1730451046628,-636.13,0.00041095,3]
[341135286,1730451046638,-500.0,0.00041095,3]
[341135287,1730451046647,-500.0,0.00041095,3]
[341135289,1730451046656,-500.0,0.00041095,3]
[341135290,1730451046667,-500.0,0.00041095,3]
[341135293,1730451046678,-500.0,0.00041095,3]
[341135294,1730451046688,-500.0,0.00041095,3]
[341135296,1730451046698,-500.0,0.00041095,3]
[341135299,1730451046709,-500.0,0.00041095,3]
[341135301,1730451046720,-500.0,0.00041095,3]
[341135303,1730451046729,-500.0,0.00041095,3]
[341135305,1730451046740,-500.0,0.00041095,3]
[341135307,1730451046750,-500.0,0.00041095,3]
[341135309,1730451046759,-500.0,0.00041095,3]
[341135311,1730451046769,-792.95,0.00041095,3]
[341135312,1730451046780,-572.07,0.00041095,3]
[341135313,1730451046792,-500.0,0.00041095,3]
[341135314,1730451046803,-500.0,0.00041095,3]
[341135315,1730451046817,-620.01,0.00041095,3]
[341135316,1730451046829,-500.0,0.00041095,3]
[341135317,1730451046838,-500.0,0.00041095,3]
[341135318,1730451046847,-300.0,0.00041095,3]
[341135319,1730451046857,-500.0,0.00041095,3]
[341135320,1730451046866,-500.0,0.00041095,3]
[341135321,1730451046877,-733.94873602,0.00041095,3]
[341135324,1730451107894,153.0,0.00035616,2]
[341135325,1730451108142,153.0,0.00035616,2]
[341135326,1730451109547,222.54425,0.00035972,2]
[341135328,1730451117172,153.0,0.00035616,2]
[341135331,1730451301943,217.0,0.00019725,2]
[341135333,1730451486316,158.95,0.00015342,2]
[341135335,1730451852625,1500.0,0.00044821,120]
[341135336,1730451903158,6050.0,0.00018,10]
[341135338,1730451992895,158.58,0.00015342,2]
[341135339,1730452005174,5789.444,0.00044821,20]
[341135340,1730452028133,-1451.86548969,0.0003,15]
[341135341,1730452039115,-1090.02350162,0.0003,15]
[341135342,1730452147098,-2597.67829299,0.0003,15]
[341135343,1730452147118,-260.0,0.000345,2]
[341135344,1730452147138,-124.58822501,0.00035616,2]
[341135345,1730452155095,-28.41177499,0.00035616,2]
[341135346,1730452155117,-153.0,0.00035616,2]
[341135347,1730452155136,-153.0,0.00035616,2]
[341135348,1730452155162,-153.0,0.00035616,2]
[341135349,1730452155182,-279.62925,0.00035972,2]
[341135360,1730452232442,-815.45,0.00037697,2]
[341135361,1730452232452,-196.85,0.00037706,2]
[341135362,1730452232461,-107.95,0.00038016,2]
[341135363,1730452232501,-71.21,0.00038016,2]
[341135364,1730452232511,-289.09,0.00038016,2]
[341135365,1730452232521,-150.22,0.00038821,2]
[341135366,1730452232530,-179.6628127,0.00039503,2]
[341135367,1730452232542,-246.1771873,0.00039503,2]
[341135368,1730452232553,-250.0,0.00039572,2]
[341135369,1730452232562,-176.25167513,0.0003963,2]
[341135370,1730452232574,-23723.74832487,0.0003963,2]
[341135371,1730452232584,-250.0,0.00039658,120]
[341135372,1730452232593,-150.99,0.00039688,2]
[341135373,1730452232602,-150.0,0.00039738,2]
[341135374,1730452232611,-800.0,0.00039753,2]
[341135375,1730452232622,-200.0,0.00039783,2]
[341135376,1730452232632,-250.0,0.00039796,2]
[341135377,1730452232641,-167.0,0.00039859,2]
[341135378,1730452232652,-815.45,0.00039961,2]
[341135379,1730452232663,-3815.6292308,0.0004001,2]
[341135381,1730452232678,-764.1593386,0.0004001,2]
[341135483,1730452240500,-7050.0,0.0004001,2]
[341135484,1730452240516,-2711.01218535,0.0004001,2]
[341135485,1730452240563,-626.21,0.0004001,2]
[341135499,1730452243578,-430.24516192,0.0004001,2]
[341135500,1730452243638,-17400.94188333,0.0004001,2]
[341135501,1730452243647,-150.485,0.00040058,56]
[341135502,1730452243656,-176.14,0.00040058,2]
[341135503,1730452243666,-200.0,0.0004026,2]
[341135504,1730452243675,-431.71,0.00040274,2]
[341135505,1730452243685,-431.71,0.00040274,2]
[341135506,1730452243694,-395.26743875,0.00040274,2]
[341135534,1730452246392,-36.44256125,0.00040274,2]
[341135537,1730452246402,-223.44842474,0.00040274,2]
[341135556,1730452246580,-208.26157526,0.00040274,2]
[341135557,1730452246592,-284.71092044,0.00040274,2]
[341135834,1730452255421,250.0,0.00017,2]
[341135835,1730452256609,300.0,0.00019,2]
[341135836,1730452257183,173.453,0.00035972,2]
[341135837,1730452257712,350.0,0.00021,2]
[341135838,1730452258801,400.0,0.00023,2]
[341135839,1730452259881,450.0,0.00025,2]
[341135840,1730452260962,500.0,0.00027,2]
[341135841,1730452302173,153.0,0.00035616,2]
[341135842,1730452478308,150.0,0.00021011,2]
[341135844,1730452502930,158.41,0.00015342,2]
[341135845,1730452676942,1000.0,0.00044821,120]
[341135846,1730452896840,-201.59347746,0.00023,2]
[341135847,1730453012532,158.79,0.00015342,2]
[341135848,1730453107907,63107.4393,0.00016,2]
[341135849,1730453107931,36892.5607,0.00016,2]
[341135850,1730453168720,1624.12162384,0.00021,2]
[341135852,1730453239144,-228.76445728,0.0002211,2]
[341135853,1730453239170,-1512.7270246,0.00035,2]
[341135854,1730453244102,-2149.8304377,0.00035,2]
[341135855,1730453308128,8000.0,0.0002,2]
[341135856,1730453308150,5397.91849142,0.0002,2]
[341135857,1730453345312,-3399.99439045,0.00035,2]
[341135858,1730453359080,-6103.44797183,0.00035,2]
[341135859,1730453359100,-1354.48477739,0.00035,2]
[341135860,1730453364281,-8103.64954271,0.000349,2]
[341135861,1730453364308,-22508.49950733,0.00035,2]
[341135862,1730453368151,-2638.53929528,0.00035,2]
[341135863,1730453368172,-500.86301168,0.00035,5]
[341135864,1730453368192,-500.0,0.00035,2]
[341135865,1730453368216,-153.0,0.00035616,2]
[341135866,1730453368237,-153.0,0.00035616,2]
[341135867,1730453368259,-153.0,0.00035616,2]
[341135868,1730453368280,-153.0,0.00035616,2]
[341135869,1730453368303,-153.0,0.00035616,2]
[341135870,1730453368323,-153.0,0.00035616,2]
[341135871,1730453368343,-153.0,0.00035616,2]
[341135872,1730453368363,-153.0,0.00035616,2]
[341135873,1730453368384,-153.0,0.00035616,2]
[341135874,1730453369096,-326.3305,0.00035972,2]
[341135875,1730453369120,-500.0,0.0003637,2]
[341135896,1730453431472,-733.9,0.00037318,2]
[341135899,1730453431481,-571.54,0.0003755,2]